bitfinex-derivatives/quotes_ETHF0:USTF0_20250612
["timestamp","ask_amount","ask_price","bid_price","bid_amount"]
[1749744712939,27.7528,2733.7,2733.6,0.73151]
[1749744713543,28.48428,2733.7,2733.6,0.73151]
[1749744713734,28.48428,2733.7,2733.4,0.00549199]
[1749744713735,0.73153,2733.6,2733.5,0.73151]
[1749744713929,0.73153,2733.5,2733.4,0.73704199]
[1749744714134,0.73153,2733.5,2733.4,0.00549199]
[1749744714532,0.73153,2733.5,2733.4,0.73705199]
[1749744714731,0.73152,2733.6,2733.5,0.73153]
[1749744715333,3.93929,2733.7,2733.6,0.73151]
[1749744715541,28.47929,2733.7,2733.6,0.73151]
[1749744715835,27.7478,2733.7,2733.6,0.73151]
[1749744716042,0.00549199,2733.9,2733.8,0.73145]
[1749744716438,3.2078,2734.4,2734.3,0.73132]
[1749744717740,0.00549199,2734.6,2734.5,0.73127]
[1749744718337,0.00549199,2734.6,2734.5,1.91687]
[1749744721447,7.93777162,2735.1,2735.0,0.73113]
[1749744721641,7.49947162,2735.1,2735.0,0.73113]
[1749744723648,7.49947162,2735.1,2735.0,1.92273]
[1749744723845,6.24807162,2735.1,2735.0,1.92273]
[1749744724146,2.45947209,2735.1,2735.0,1.92273]
[1749744727550,2.45947209,2735.1,2735.0,0.73113]
[1749744727843,0.73114,2735.0,2734.9,0.73114]
[1749744728245,30.3228,2735.0,2733.1,3.2078]
[1749744728448,3.2078,2734.0,2733.1,3.2078]
[1749744728644,3.2078,2734.0,2733.4,1.8289]
[1749744728845,3.2078,2734.0,2733.9,0.73143]
[1749744729240,12.24293,2734.3,2733.7,0.00549199]
[1749744729448,0.7314,2734.0,2733.8,0.73143]
[1749744729650,11.5116,2734.3,2733.7,0.00549199]
[1749744729853,10.3008,2734.3,2734.2,0.73135]
[1749744730052,0.73135,2734.2,2734.1,0.73137]
[1749744730251,3.2078,2734.3,2733.8,1.1918]
[1749744730452,3.93913,2734.3,2733.8,1.1918]
[1749744730654,3.2078,2734.3,2734.2,0.73135]
[1749744731051,3.2078,2734.3,2734.1,0.73136]
[1749744731252,0.73136,2734.2,2734.1,0.73136]
[1749744731555,0.73133,2734.3,2734.2,0.73134]
[1749744731748,0.73128,2734.5,2734.4,0.73129]
[1749744731943,7.093,2734.6,2734.0,4.4511]
[1749744732150,3.2078,2734.4,2734.3,0.73132]
[1749744732552,3.2078,2734.4,2734.0,1.2433]
[1749744732553,0.73134,2734.3,2734.0,1.2433]
[1749744732749,0.73136,2734.2,2734.1,0.73137]
[1749744732943,0.73134,2734.3,2734.1,0.73137]
[1749744733150,0.73134,2734.3,2734.2,0.73135]
[1749744733349,3.2078,2734.4,2734.3,0.73132]
[1749744733552,7.093,2734.6,2734.5,0.73127]
[1749744733849,3.2078,2734.7,2734.6,0.73124]
[1749744734055,0.73125,2734.6,2734.5,0.73126]
[1749744734451,3.2078,2734.7,2734.2,1.2433]
[1749744734956,0.73128,2734.5,2734.2,1.2433]
[1749744735156,0.73126,2734.6,2734.5,0.73127]
[1749744735357,0.73127,2734.5,2734.4,0.73128]
[1749744735559,0.73127,2734.5,2734.3,0.7313]
[1749744735856,0.73128,2734.5,2734.4,0.73128]
[1749744736354,0.73126,2734.6,2734.5,0.73125]
[1749744736658,0.7313,2734.4,2734.3,0.7313]
[1749744736952,3.2078,2734.7,2734.2,1.2433]
[1749744737250,0.73135,2734.2,2734.1,0.73136]
[1749744737555,0.73134,2734.3,2734.2,0.73133]
[1749744738255,3.2078,2734.4,2734.3,0.73132]
[1749744738857,3.93909,2734.4,2734.3,0.73132]
[1749744739255,3.2078,2734.4,2734.3,0.73132]
[1749744739757,3.2078,2734.7,2734.6,0.73121]
[1749744739959,0.73127,2734.6,2734.5,0.73124]
[1749744740456,3.93904,2734.7,2734.6,0.73124]
[1749744740756,3.93901,2734.7,2734.6,0.73124]
[1749744741158,0.73127,2734.6,2734.5,0.73125]
[1749744742456,3.93903,2734.7,2734.6,0.73124]
[1749744742653,2.40261,2734.7,2734.6,0.73124]
[1749744742858,4.37701,2735.5,2735.0,0.73113]
[1749744743056,3.646,2735.5,2735.0,0.73113]
[1749744743353,0.73105,2735.4,2735.0,3.93893]
[1749744743553,0.4382,2735.5,2735.0,5.21953]
[1749744743750,4.5106,2735.8,2735.0,10.21953]
[1749744743951,0.79,2736.0,2735.0,10.21953]
[1749744744157,0.73096,2735.7,2735.0,10.21953]
[1749744744354,1.69863209,2735.1,2735.0,5.21953]
[1749744744659,1.69863209,2735.1,2735.0,10.21953]
[1749744745058,0.86368209,2735.1,2735.0,10.21953]
[1749744745264,2.09e-06,2735.1,2735.0,10.21953]
[1749744745451,4.08e-06,2735.3,2735.2,0.73108]
[1749744746158,5.00000408,2735.3,2734.9,0.73114]
[1749744746354,0.73114,2735.0,2734.9,0.73114]
[1749744746558,3.93894,2735.0,2734.9,0.73114]
[1749744746863,0.73132,2734.3,2734.2,3.93913]
[1749744747058,0.73137,2734.1,2734.0,0.28908244]
[1749744747260,0.73142,2734.0,2733.7,0.00549199]
[1749744747559,0.73145,2733.8,2733.7,0.00549199]
[1749744747865,0.73145,2733.9,2733.8,0.73144]
[1749744748066,0.73142,2734.0,2733.9,0.73142]
[1749744748264,4.5041,2734.1,2733.7,0.00549199]
[1749744748467,2.02772,2734.0,2733.9,0.73142]
[1749744748857,1.2963,2734.0,2733.9,0.73142]
[1749744749065,3.93917,2734.1,2734.0,0.7314]
[1749744749262,3.2078,2734.1,2734.0,0.7314]
[1749744749461,0.73141,2734.0,2733.7,0.00549199]
[1749744749661,0.73142,2734.0,2733.9,0.73143]
[1749744749868,0.73144,2733.9,2733.8,0.73145]
[1749744750170,1.2479,2734.0,2733.9,0.73143]
[1749744750470,0.73144,2733.9,2733.8,0.73144]
[1749744750663,1.97932,2734.0,2733.9,0.73143]
[1749744750963,0.73143,2733.9,2733.8,0.73144]
[1749744751156,0.73145,2733.8,2733.7,0.00549199]
[1749744751360,12.25215,2733.8,2733.7,0.00549199]
[1749744751555,12.25215,2733.8,2733.5,0.25]
[1749744751556,0.73151,2733.6,2733.5,0.25]
[1749744751964,5.73151,2733.6,2733.5,0.25]
[1749744752163,0.7315,2733.7,2733.5,0.25]
[1749744752462,0.73151,2733.6,2733.5,0.98153]
[1749744752664,0.73151,2733.6,2733.5,0.25]
[1749744752861,0.73151,2733.6,2733.5,0.98153]
[1749744753064,0.73151,2733.6,2733.5,0.25]
[1749744753265,0.73151,2733.6,2733.5,0.98153]
[1749744753671,0.73151,2733.6,2733.5,0.25]
[1749744753863,0.7315,2733.7,2733.6,0.73148]
[1749744754064,0.73151,2733.6,2733.5,0.98151]
[1749744754264,12.25766199,2733.8,2733.7,0.73148]
[1749744754860,3.21329199,2733.8,2733.7,0.73148]
[1749744755164,0.73694199,2733.8,2733.7,0.73148]
[1749744755372,0.7315,2733.7,2733.6,0.73149]
[1749744755571,0.73151,2733.6,2733.5,0.98153]
[1749744755875,0.73151,2733.6,2733.5,0.25]
[1749744756061,0.73151,2733.6,2733.5,0.98153]
[1749744756967,0.73151,2733.6,2733.5,0.25]
[1749744757668,5.73151,2733.6,2733.5,0.25]
[1749744757870,7.02971,2733.6,2733.5,0.25]
[1749744758266,2.02971,2733.6,2733.5,0.25]
[1749744759672,7.02971,2733.6,2733.5,0.25]
[1749744760768,0.73156,2733.4,2733.3,0.00549199]
[1749744760965,3.93936,2733.4,2733.3,0.00549199]
[1749744761168,8.93936,2733.4,2733.3,0.00549199]
[1749744761470,5.90636,2733.4,2733.3,0.00549199]
[1749744762473,10.90636,2733.4,2733.3,0.00549199]
[1749744762676,0.73177,2732.6,2732.5,0.73177]
[1749744762870,3.2078,2732.8,2732.4,2.0611]
[1749744763177,0.73176,2732.7,2732.6,0.73175]
[1749744763373,3.2078,2732.8,2732.7,0.73175]
[1749744763679,7.79967,2733.0,2732.9,0.73169]
[1749744764069,7.068,2733.0,2732.9,0.73169]
[1749744765277,7.79967,2733.0,2732.9,0.73169]
[1749744765571,7.068,2733.0,2732.9,0.73169]
[1749744766073,7.068,2733.0,2732.9,1.98449]
[1749744766772,3.93941,2733.2,2733.1,0.73164]
[1749744766980,0.73167,2733.1,2733.0,0.73164]
[1749744767277,0.73164,2733.1,2733.0,0.73164]
[1749744767772,0.73169,2732.9,2732.8,0.7823]
[1749744768072,0.73169,2732.9,2732.5,0.00549199]
[1749744768073,0.73177,2732.6,2732.5,0.00549199]
[1749744768274,3.93957,2732.6,2732.5,0.00549199]
[1749744768477,4.37867,2732.6,2732.5,0.00549199]
[1749744769772,0.73196,2732.0,2731.9,0.73194]
[1749744770078,3.93976,2732.0,2731.9,0.73194]
[1749744771276,0.73199,2731.9,2731.8,0.73198]
[1749744773571,0.73199,2731.8,2731.7,0.00549199]
[1749744773877,1.83006,2731.7,2730.9,3.2078]
[1749744774073,0.73217,2731.2,2731.1,0.73214]
[1749744774269,0.73216,2731.2,2731.1,0.73215]
[1749744774474,0.73218,2731.2,2731.1,0.73215]
[1749744774870,3.2078,2731.4,2731.3,0.73212]
[1749744775068,3.2078,2731.4,2731.1,1.1902]
[1749744775276,0.73215,2731.2,2731.1,0.73217]
[1749744776368,0.73215,2731.2,2731.0,0.7806]
[1749744776369,0.73218,2731.1,2731.0,1.51279]
[1749744776573,0.73217,2731.2,2731.1,0.73215]
[1749744776778,0.73218,2731.1,2731.0,1.5128]
[1749744777384,0.7322,2731.0,2730.9,0.73586726]
[1749744777590,0.7322,2731.1,2731.0,0.73218]
[1749744777788,0.73238,2730.4,2730.3,0.73239]
[1749744777984,5.2802,2731.0,2730.3,0.73238]
[1749744778189,34.7138,2730.9,2730.8,0.73226]
[1749744778384,3.2078,2730.9,2730.5,0.73232]
[1749744778584,31.505,2730.8,2730.3,1.2379]
[1749744778790,3.94012,2730.6,2730.4,0.73235]
[1749744778988,3.2078,2730.6,2730.5,0.73234]
[1749744779291,0.73236,2730.4,2730.3,1.2379]
[1749744779492,7.048,2730.4,2730.0,0.7648]
[1749744779690,25.19042,2730.3,2730.2,0.73242]
[1749744779892,25.19042,2730.3,2730.0,2.0027]
[1749744779893,27.6658,2730.3,2730.0,0.7648]
[1749744780085,0.73244,2730.1,2730.0,0.7648]
[1749744781089,0.73244,2730.1,2729.6,1.2379]
[1749744781286,0.73255,2729.7,2729.6,1.2379]
[1749744781489,32.23955,2729.7,2729.6,1.2379]
[1749744781689,0.7326,2729.6,2729.4,1.6244]
[1749744781885,31.507,2729.7,2729.6,0.73258]
[1749744782087,3.2078,2729.9,2729.5,1.2223]
[1749744782287,0.73257,2729.7,2729.6,0.73257]
[1749744782496,32.23854,2729.8,2729.7,0.73255]
[1749744782686,31.506,2729.8,2729.5,1.2223]
[1749744782988,1.83124,2730.0,2728.9,0.73275]
[1749744782989,0.73275,2729.0,2728.9,0.73275]
[1749744783293,3.2078,2729.0,2728.1,3.2078]
[1749744783495,3.2078,2728.7,2728.1,3.2078]
[1749744783691,3.2078,2728.7,2728.6,0.73285]
[1749744783895,3.2078,2728.7,2728.5,0.73286]
[1749744784196,3.94062,2728.7,2728.6,0.73285]
[1749744784391,3.94063,2728.7,2728.3,1.29]
[1749744784587,3.2078,2728.7,2728.2,0.8011]
[1749744784996,3.2078,2728.7,2728.6,0.73285]
[1749744785194,3.94062,2728.7,2728.5,0.73286]
[1749744785389,0.73285,2728.6,2728.5,0.73286]
[1749744785691,3.94064,2728.7,2728.5,0.73287]
[1749744785889,3.2078,2728.7,2728.3,1.29]
[1749744786193,3.2078,2728.7,2728.6,0.73285]
[1749744786592,3.21329199,2729.2,2729.1,0.73271]
[1749744786794,3.21329199,2729.2,2729.1,0.37543442]
[1749744787097,0.00549199,2729.2,2729.1,0.37543442]
[1749744787788,0.00549199,2729.2,2728.8,0.7604]
[1749744788101,3.2078,2728.9,2728.4,0.73289]
[1749744788299,3.2078,2728.9,2728.8,0.73279]
[1749744788692,3.2078,2728.9,2728.5,2.7484]
[1749744788987,0.73283,2728.7,2728.5,2.7484]
[1749744789187,0.73281,2728.8,2728.6,0.73283]
[1749744789394,3.2078,2728.9,2728.8,0.73279]
[1749744789596,0.73272,2729.1,2729.0,0.73274]
[1749744790205,0.00549199,2729.2,2729.1,0.73271]
[1749744790500,0.44509199,2729.2,2729.1,0.73271]
[1749744792903,1.17778199,2729.2,2729.1,0.73271]
[1749744793296,0.44509199,2729.2,2729.1,0.73271]
[1749744793805,3.2078,2729.8,2729.7,0.73255]
[1749744794098,3.2078,2730.2,2730.1,0.73244]
[1749744794302,3.84257,2730.7,2729.7,1.83133]
[1749744794303,0.73238,2730.4,2729.9,1.83119]
[1749744794497,3.2078,2730.5,2729.9,1.83119]
[1749744794805,3.21329199,2730.5,2730.4,0.73236]
[1749744795100,3.94565199,2730.5,2730.4,0.73236]
[1749744795302,3.21329199,2730.5,2730.4,0.73236]
[1749744795504,3.21329199,2730.5,2730.3,0.73238]
[1749744795799,3.94563199,2730.5,2730.4,1.99066]
[1749744796011,0.00549199,2730.5,2730.4,1.99066]
[1749744796604,0.00549199,2730.5,2730.4,5.19846]
[1749744798100,3.2078,2732.1,2730.4,9.4661]
[1749744798296,2.15026128,2732.9,2732.0,3.2078]
[1749744798496,1.252,2733.2,2732.6,3.2078]
[1749744798797,3.2078,2733.7,2732.7,3.2078]
[1749744799004,1.28279199,2733.5,2733.0,3.2078]
[1749744799507,0.73163,2733.2,2733.0,3.2078]
[1749744800207,3.2078,2733.3,2732.9,0.00549199]
[1749744800406,3.2078,2733.0,2731.3,3.2078]
[1749744800704,3.2078,2732.3,2731.6,3.2078]
[1749744801009,0.73195,2732.0,2731.6,3.93984]
[1749744801208,0.73196,2731.9,2731.6,0.73204]
[1749744801411,0.73203,2731.7,2731.5,0.00549199]
[1749744801601,3.2078,2731.9,2731.5,0.00549199]
[1749744801602,0.73204,2731.6,2731.5,0.00549199]
[1749744801910,3.93984,2731.6,2731.5,0.00549199]
[1749744802304,3.2078,2731.6,2731.5,0.00549199]
[1749744802510,0.73199,2731.8,2731.5,0.73755199]
[1749744803009,0.73202,2731.8,2731.5,0.73755199]
[1749744803410,0.73203,2731.7,2731.5,0.00549199]
[1749744803803,3.93979,2731.9,2731.6,0.73203]
[1749744804013,0.00549199,2732.0,2731.6,0.73203]
[1749744804014,0.00549199,2732.0,2731.9,0.73196]
[1749744804314,0.00549199,2732.0,2731.5,0.00549199]
[1749744804506,3.21329199,2732.0,2731.5,0.00549199]
[1749744804909,1.83027,2731.4,2730.2,3.2078]
[1749744805102,1.83027,2731.4,2728.2,3.661]
[1749744805103,0.7321,2731.4,2730.5,3.2078]
[1749744805306,0.73204,2731.6,2730.7,3.2078]
[1749744805510,0.73212,2731.4,2731.1,0.73217]
[1749744806119,0.73212,2731.4,2731.2,0.73214]
[1749744806316,0.00549199,2731.5,2731.1,0.73216]
[1749744806614,0.73214,2731.3,2731.1,0.73216]
[1749744806815,0.00549199,2731.5,2731.2,1.2265]
[1749744807209,0.73212,2731.4,2731.2,1.95864]
[1749744807509,0.00549199,2731.5,2731.2,1.95864]
[1749744807510,0.00549199,2731.5,2731.4,0.7321]
[1749744808207,0.00549199,2731.5,2731.4,2.7966]
[1749744809116,0.00549199,2731.5,2731.1,1.54936]
[1749744809117,0.73214,2731.3,2731.1,1.54936]
[1749744809510,0.00549199,2731.5,2731.1,0.8172]
[1749744809807,0.73215,2731.2,2731.1,0.8172]
[1749744810009,0.73213,2731.3,2731.1,1.54936]
[1749744810313,0.73215,2731.2,2731.1,1.54937]
[1749744810514,0.73215,2731.2,2731.1,0.8172]
[1749744810715,0.7322,2731.1,2730.9,3.94001]
[1749744811413,0.7322,2731.0,2730.9,0.73221]
[1749744811610,0.73219,2731.1,2731.0,0.7322]
[1749744811806,3.2078,2731.3,2731.2,0.73215]
[1749744812116,0.73758199,2731.5,2731.4,0.7321]
[1749744812309,0.7321,2731.4,2731.3,0.73211]
[1749744812511,0.73757199,2731.5,2731.4,0.7321]
[1749744812712,0.00549199,2731.5,2731.4,0.7321]
[1749744813707,0.00549199,2731.5,2731.1,1.9702]
[1749744813917,0.7321,2731.4,2731.3,0.7321]
[1749744814312,0.00549199,2731.5,2731.1,1.9702]
[1749744814515,0.7322,2731.0,2730.9,3.2078]
[1749744814720,1.83031,2731.3,2730.8,1.48554]
[1749744814721,0.73223,2730.9,2730.8,1.48556]
[1749744815024,0.73223,2731.0,2730.9,0.73223]
[1749744815217,3.2078,2731.1,2730.8,0.7533]
[1749744815218,0.73223,2730.9,2730.8,0.7533]
[1749744815414,0.73222,2731.0,2730.8,0.7533]
[1749744815714,3.2078,2731.1,2731.0,0.7322]
[1749744816017,0.7322,2731.1,2731.0,0.73219]
[1749744816419,0.73223,2731.0,2730.9,0.73222]
[1749744816921,0.73228,2730.7,2730.6,0.73231]
[1749744817117,0.73228,2730.8,2730.7,0.73227]
[1749744817518,0.7323,2730.7,2730.6,0.73229]
[1749744817914,3.10803,2731.0,2730.5,0.7885]
[1749744817915,0.73227,2730.8,2730.7,0.73226]
[1749744819518,1.2775,2731.0,2730.5,0.7885]
[1749744819724,3.2078,2730.6,2730.0,5.84058]
[1749744820023,0.73239,2730.4,2730.3,0.73237]
[1749744820316,3.2078,2730.9,2730.8,0.73223]
[1749744820522,0.73216,2731.2,2731.1,0.73218]
[1749744821222,3.93996,2731.2,2731.1,0.73218]
[1749744821822,0.73219,2731.1,2731.0,0.73218]
[1749744822122,0.73223,2731.0,2730.9,0.73221]
[1749744822315,3.2078,2731.2,2731.1,0.73218]
[1749744822726,3.93995,2731.2,2731.1,0.73218]
[1749744822912,3.93995,2731.2,2730.7,7.8859]
[1749744822913,0.73219,2731.1,2731.0,0.73218]
[1749744823317,3.93996,2731.2,2730.8,1.3031]
[1749744823519,0.73219,2731.1,2731.0,0.73218]
[1749744823928,3.21329199,2731.5,2731.4,0.7321]
[1749744824129,0.73211,2731.4,2731.3,0.7321]
[1749744824623,0.73211,2731.4,2731.1,1.3031]
[1749744824624,3.94537199,2731.5,2731.4,0.7321]
[1749744825523,0.00549199,2731.5,2731.4,0.7321]
[1749744825826,0.73756199,2731.5,2731.4,0.7321]
[1749744826427,0.00549199,2731.5,2731.4,0.7321]
[1749744826626,0.00549199,2731.5,2731.4,3.9399]
[1749744827223,0.00549199,2731.5,2731.4,5.9772]
[1749744828227,1.99e-06,2731.5,2731.4,5.9772]
[1749744828428,1.99e-06,2731.5,2731.4,10.9772]
[1749744831427,3.2078,2733.0,2732.7,0.73173]
[1749744831626,0.73175,2732.8,2732.7,0.73173]
[1749744833126,3.21329199,2733.0,2732.8,0.73169]
[1749744833127,0.73171,2732.9,2732.8,0.73169]
[1749744833432,3.94497199,2733.0,2732.9,0.73169]
[1749744834226,3.94497199,2733.0,2732.5,3.95868199]
[1749744834227,0.73172,2732.9,2732.8,0.73169]
[1749744835627,0.73172,2732.9,2732.8,0.73172]
[1749744835830,0.73177,2732.6,2732.5,0.00549199]
[1749744836136,0.73202,2731.7,2731.6,1.607]
[1749744836322,1.82998,2731.8,2731.4,0.73207]
[1749744836526,0.7321,2731.4,2731.3,0.7321]
[1749744836728,3.2078,2731.4,2731.2,0.73214]
[1749744836934,0.73214,2731.3,2731.2,0.73214]
[1749744837420,3.2078,2731.4,2731.0,0.8207]
[1749744837726,3.93991,2731.4,2731.3,0.73212]
[1749744837927,0.73213,2731.3,2731.2,0.73214]
[1749744838231,3.93992,2731.4,2731.3,0.73212]
[1749744838533,0.73216,2731.2,2731.1,0.73216]
[1749744838727,0.73216,2731.2,2730.7,2.086]
[1749744838728,4.5017,2731.4,2730.7,2.086]
[1749744838925,0.73217,2731.2,2731.1,0.73217]
[1749744839732,4.5017,2731.4,2730.8,3.2078]
[1749744839924,4.5017,2731.4,2730.9,0.7322]
[1749744840125,0.73219,2731.1,2731.0,0.7322]
[1749744840320,3.2078,2731.4,2730.9,1.83058]
[1749744840526,0.00549199,2731.5,2731.4,0.7321]
[1749744841032,0.73758199,2731.5,2731.4,0.7321]
[1749744841227,0.73215,2731.2,2731.1,3.93996]
[1749744841533,0.00549199,2731.5,2731.4,0.7321]
[1749744842125,0.73211,2731.4,2731.3,0.73211]
[1749744842332,0.73214,2731.3,2731.2,0.73214]
[1749744842721,0.73216,2731.2,2731.1,0.73215]
[1749744842929,0.73225,2730.9,2730.8,0.73224]
[1749744843138,1.3055,2731.1,2730.4,5.03866]
[1749744843326,2.03769,2731.1,2731.0,0.7322]
[1749744843834,0.73226,2730.9,2730.8,0.73226]
[1749744844229,0.73227,2730.8,2730.7,0.73227]
[1749744844426,0.7323,2730.7,2730.6,0.7323]
[1749744844731,0.73229,2730.7,2730.6,0.7323]
[1749744844927,0.73227,2730.8,2730.7,0.73228]
[1749744845124,0.73227,2730.8,2730.7,0.73227]
[1749744845330,2.9015,2731.1,2730.5,2.64131]
[1749744845529,1.596,2731.1,2731.0,0.7322]
[1749744845739,0.73218,2731.1,2731.0,0.7322]
[1749744846233,1.83052,2731.0,2730.6,0.73228]
[1749744846435,0.73228,2730.7,2730.6,0.73228]
[1749744846636,0.73228,2730.8,2730.7,0.73228]
[1749744846828,3.2078,2730.8,2730.1,4.4209]
[1749744847031,0.73233,2730.6,2730.4,0.73234]
[1749744847231,0.73233,2730.6,2730.5,0.73234]
[1749744847431,3.2078,2730.8,2730.1,4.4209]
[1749744847631,1.2101,2730.7,2730.3,0.73238]
[1749744847830,1.2101,2730.7,2730.1,4.4209]
[1749744848029,1.2101,2730.7,2729.4,3.2078]
[1749744848030,1.83098,2730.3,2729.4,3.2078]
[1749744848239,0.73252,2729.9,2729.8,0.73252]
[1749744848531,1.83125,2729.9,2729.4,0.8367]
[1749744848736,3.2078,2729.5,2729.4,1.56933]
[1749744848931,4.4179,2729.9,2729.4,0.8367]
[1749744849140,4.4179,2729.9,2729.2,3.2078]
[1749744849333,0.73269,2729.2,2729.1,0.7327]
[1749744849527,3.2078,2729.6,2729.0,0.8367]
[1749744849727,3.2078,2729.6,2729.1,0.73269]
[1749744849728,0.73266,2729.3,2729.1,0.73269]
[1749744849932,0.73266,2729.3,2729.0,0.8367]
[1749744850137,1.2101,2729.5,2729.1,1.83179]
[1749744850432,0.73259,2729.6,2729.1,3.2078]
[1749744850637,3.94039,2729.6,2729.4,0.73262]
[1749744850829,0.73261,2729.5,2729.1,4.4202]
[1749744851030,3.2078,2729.6,2729.1,4.4202]
[1749744851230,3.2078,2729.6,2729.5,0.73261]
[1749744851432,6.31288,2729.9,2729.4,0.73262]
[1749744851637,1.83132,2729.8,2729.2,1.2124]
[1749744851838,3.2078,2729.6,2729.0,0.8367]
[1749744852040,3.2078,2729.6,2729.0,4.0445]
[1749744852239,0.73263,2729.5,2729.3,0.7946572]
[1749744852436,0.73263,2729.4,2729.3,0.7946572]
[1749744852638,0.73263,2729.4,2729.3,0.7946772]
[1749744853140,0.73266,2729.3,2729.2,0.73267]
[1749744853336,3.2078,2729.6,2729.0,4.0445]
[1749744853541,0.73261,2729.5,2729.4,0.73263]
[1749744853740,0.73264,2729.4,2729.3,0.73264]
[1749744854345,0.73264,2729.4,2729.3,0.73265]
[1749744855243,3.2078,2729.6,2729.3,0.73265]
[1749744855444,3.2078,2729.6,2729.2,0.73267]
[1749744855445,0.73267,2729.3,2729.2,0.73267]
[1749744855639,0.73262,2729.5,2729.4,0.73262]
[1749744855834,0.73264,2729.4,2729.3,0.73264]
[1749744856647,0.73267,2729.3,2729.2,0.73266]
[1749744856945,0.73265,2729.4,2729.3,0.73265]
[1749744857140,4.4007,2729.6,2729.0,5.2912]
[1749744857449,0.73264,2729.4,2729.3,0.73264]
[1749744857943,4.4007,2729.6,2729.0,5.2912]
[1749744858144,0.73261,2729.5,2729.4,0.73262]
[1749744858343,3.2078,2729.6,2729.5,0.73261]
[1749744858543,3.94038,2729.6,2729.5,0.73261]
[1749744859045,0.73265,2729.4,2729.3,0.73263]
[1749744859543,5.0,2729.4,2728.4,3.2078]
[1749744859741,0.73281,2728.8,2728.7,0.73279]
[1749744859940,0.73283,2728.7,2728.6,0.73282]
[1749744860142,0.73281,2728.8,2728.7,0.7328]
[1749744860645,0.73278,2728.9,2728.8,0.73277]
[1749744861050,0.73281,2728.8,2728.7,0.7328]
[1749744862348,1.83192,2728.9,2728.4,1.3029]
[1749744862642,0.73286,2728.6,2728.5,0.73285]
[1749744863661,7.72786,2728.6,2728.5,0.73285]
[1749744864144,0.73287,2728.5,2728.4,1.3029]
[1749744864344,0.73295,2728.2,2728.1,1.52887]
[1749744864548,6.995,2728.6,2728.1,0.7959]
[1749744864751,0.73291,2728.4,2728.3,0.73292]
[1749744865250,6.995,2728.6,2728.1,2.0522]
[1749744865453,7.72785,2728.6,2728.5,0.0620172]
[1749744866454,0.73287,2728.5,2728.4,0.73289]
[1749744866847,7.72787,2728.6,2728.5,0.73287]
[1749744867049,3.21329199,2728.7,2728.6,0.73285]
[1749744867249,7.00049199,2728.7,2728.5,0.73286]
[1749744867444,0.73292,2728.4,2728.2,3.2078]
[1749744867651,0.73293,2728.3,2728.2,0.73293]
[1749744867956,0.73293,2728.3,2728.1,0.7959]
[1749744867957,0.73295,2728.2,2728.1,0.7959]
[1749744868244,0.73295,2728.2,2727.7,5.04053]
[1749744868245,6.995,2728.3,2727.7,3.2078]
[1749744868452,0.73308,2727.8,2727.7,0.73306]
[1749744869153,3.2078,2728.0,2727.5,0.8627]
[1749744869450,0.73312,2727.6,2727.5,1.59581]
[1749744869652,0.73312,2727.6,2727.5,2.79951]
[1749744870451,0.73312,2727.6,2727.5,0.73314]
[1749744870756,0.6502,2727.9,2727.8,0.73306]
[1749744871351,0.6502,2727.9,2727.8,2.80066]
[1749744871851,1.38323,2727.9,2727.8,2.0676]
[1749744872051,1.38323,2727.9,2727.8,0.8559]
[1749744872251,0.6502,2727.9,2727.8,1.58896]
[1749744872453,1.38323,2727.9,2727.8,1.58896]
[1749744873254,0.73311,2727.6,2727.5,1.94482]
[1749744873451,0.73314,2727.5,2727.4,0.8053]
[1749744874362,0.73317,2727.4,2727.3,0.8618]
[1749744875057,0.73322,2727.2,2727.1,1.94493]
[1749744875254,0.73322,2727.3,2727.2,0.7332]
[1749744875451,0.73319,2727.4,2727.3,0.73317]
[1749744875650,0.73315,2727.5,2727.4,0.73314]
[1749744876053,3.2078,2727.6,2727.5,0.73314]
[1749744876258,10.2048,2727.6,2727.5,0.73314]
[1749744877053,10.2048,2727.6,2727.5,1.56614]
[1749744877253,10.93791,2727.6,2727.5,1.56614]
[1749744877454,10.2048,2727.6,2727.5,1.56614]
[1749744877655,0.6502,2727.9,2727.7,0.73306]
[1749744877957,0.73307,2727.8,2727.7,0.73309]
[1749744878161,0.73311,2727.7,2727.6,0.73309]
[1749744878460,0.73311,2727.7,2727.6,2.02899]
[1749744879076,0.73308,2727.8,2727.7,0.73306]
[1749744879371,7.6472,2727.9,2727.8,0.73306]
[1749744879571,8.38023,2727.9,2727.8,0.7950772]
[1749744879964,7.6472,2727.9,2727.8,2.0909772]
[1749744880165,1.38323,2727.9,2727.8,2.0909772]
[1749744880368,0.6502,2727.9,2727.8,2.0909772]
[1749744881474,0.73301,2728.0,2727.9,0.73303]
[1749744882274,4.882,2728.6,2727.8,1.3579172]
[1749744882469,6.971,2728.5,2728.4,0.73287]
[1749744882864,6.971,2728.5,2728.3,1.59831]
[1749744883076,7.70389,2728.5,2728.4,0.7329]
[1749744883570,6.971,2728.5,2728.4,0.7329]
[1749744883876,6.971,2728.5,2728.4,1.9515]
[1749744884567,7.70387,2728.5,2728.4,1.9515]
[1749744884771,6.971,2728.5,2728.4,1.9515]
[1749744884971,0.6499,2728.6,2728.5,0.73287]
[1749744885171,0.6499,2728.6,2728.5,1.95147]
[1749744888075,1.82245,2728.6,2728.5,1.95147]
[1749744888576,1.0896,2728.6,2728.5,1.95147]
[1749744890278,1.82245,2728.6,2728.5,1.95147]
[1749744890478,1.0896,2728.6,2728.5,1.95147]
[1749744890975,1.08410403,2728.6,2728.5,6.95147]
[1749744891282,0.4397,2728.6,2728.5,13.92147]